bitfinex-derivatives/quotes_SOLF0:USTF0_20250301
["timestamp","ask_amount","ask_price","bid_price","bid_amount"]
[1740871361055,5.626,142.25,142.24,0.05291086]
[1740871361255,3.7014,142.25,142.21,11.97466954]
[1740871361456,5.6265,142.24,142.21,11.97466954]
[1740871362358,5.6265,142.24,142.21,12.02667846]
[1740871363450,0.0486815,142.26,142.21,12.02667846]
[1740871363659,0.0486815,142.26,142.25,11.97466954]
[1740871363856,0.0486815,142.26,142.25,22.63466954]
[1740871364866,0.0486815,142.26,142.25,28.26066954]
[1740871368551,0.0486815,142.26,142.25,16.286]
[1740871368853,0.0486815,142.26,142.25,28.26066954]
[1740871373761,317.79499542,142.35,142.28,5.6245]
[1740871373961,317.79499542,142.35,142.3,11.97466954]
[1740871374159,225.08,142.35,142.3,22.63466954]
[1740871374363,230.7021,142.35,142.32,11.97466954]
[1740871374559,225.08,142.35,142.32,11.97466954]
[1740871374866,225.13396755,142.35,142.32,12.0252938]
[1740871375260,6.755e-05,142.35,142.32,0.05062426]
[1740871375467,11.97466954,142.45,142.34,11.97466954]
[1740871375662,5.6195,142.42,142.37,11.97466954]
[1740871375859,11.97466954,142.43,142.37,11.97466954]
[1740871376166,11.97466954,142.44,142.37,11.97466954]
[1740871376362,5.6192,142.43,142.37,11.97466954]
[1740871376571,0.0515761,142.42,142.39,0.04588882]
[1740871376767,7.9635761,142.42,142.39,0.04588882]
[1740871377666,25.55784564,142.42,142.39,0.04588882]
[1740871377870,29.26494564,142.42,142.39,0.04588882]
[1740871378068,23.64534564,142.42,142.39,0.04588882]
[1740871378763,11.97466954,142.4,142.33,11.97466954]
[1740871378967,11.97466954,142.38,142.33,11.97466954]
[1740871379167,11.97466954,142.38,142.31,22.63466954]
[1740871379359,5.6219,142.36,142.31,22.63466954]
[1740871380169,0.04719169,142.35,142.32,0.04987478]
[1740871380471,7.53709169,142.35,142.31,10.66]
[1740871380671,7.53709169,142.35,142.29,11.97466954]
[1740871381165,11.97466954,142.34,142.29,11.97466954]
[1740871381367,11.97466954,142.34,142.27,32.33382361]
[1740871381567,5.6235,142.32,142.26,5.6255]
[1740871381872,5.67693714,142.32,142.29,0.05315838]
[1740871382072,0.05343714,142.32,142.29,0.05315838]
[1740871382373,5.6237,142.31,142.29,0.05315838]
[1740871384774,5.624,142.3,142.29,0.05315838]
[1740871388776,5.6255,142.27,142.23,29.33455476]
[1740871388974,254.25455476,142.33,142.23,18.67455476]
[1740871389274,254.25455476,142.33,142.21,29.33455476]
[1740871389275,5.6262,142.25,142.21,29.33455476]
[1740871389677,5.6262,142.25,142.21,39.03370883]
[1740871389877,0.05123486,142.24,142.22,0.04515272]
[1740871390477,0.05123486,142.24,142.23,18.67455476]
[1740871391576,0.05123486,142.24,142.23,24.30135476]
[1740871391772,224.92,142.33,142.23,18.67455476]
[1740871392078,224.92,142.33,142.25,18.67455476]
[1740871392278,5.6235,142.32,142.25,24.30025476]
[1740871392482,5.6235,142.32,142.25,18.67455476]
[1740871392864,0.05175156,142.3,142.27,0.05160584]
[1740871393780,0.05175156,142.3,142.27,5.67650584]
[1740871394781,0.05175156,142.3,142.27,0.05160584]
[1740871394982,0.05175156,142.3,142.28,5.6248]
[1740871395371,0.05175156,142.3,142.29,5.6244]
[1740871397082,0.05175156,142.3,142.29,24.29895476]
[1740871397875,224.92,142.33,142.29,18.67455476]
[1740871398076,224.92,142.33,142.31,18.67455476]
[1740871398284,224.92,142.33,142.31,29.33455476]
[1740871399287,0.0443423,142.33,142.31,29.38823349]
[1740871399786,0.0443423,142.33,142.31,35.01163349]
[1740871400184,0.0443423,142.33,142.31,29.38823349]
[1740871400372,0.0443423,142.33,142.32,5.6232]
[1740871402878,0.0443423,142.33,142.31,29.38823349]
[1740871403587,0.0443423,142.33,142.32,11.94237217]
[1740871404888,0.0443423,142.33,142.31,10.71367873]
[1740871405088,0.0443423,142.33,142.31,22.6560509]
[1740871406587,5.6673423,142.33,142.31,22.6560509]
[1740871409784,5.6673423,142.33,142.31,10.71367873]
[1740871409988,5.6232,142.32,142.31,0.05367873]
[1740871411987,0.0443423,142.33,142.31,11.9960509]
[1740871413090,0.0443423,142.33,142.31,17.6195509]
[1740871413386,0.0443423,142.33,142.31,11.9960509]
[1740871415188,0.0443423,142.33,142.31,0.05367873]
[1740871415692,5.6232,142.32,142.31,0.05367873]
[1740871419697,0.0443423,142.33,142.24,72.19103274]
[1740871419900,243.57089626,142.35,142.25,5.6258]
[1740871420504,5.6243,142.3,142.25,5.6258]
[1740871420802,243.57089626,142.35,142.24,68.22513274]
[1740871421099,5.67005489,142.29,142.26,0.04667035]
[1740871421301,5.6244,142.29,142.24,29.33089626]
[1740871421501,0.04750482,142.29,142.26,5.6720531]
[1740871422199,0.04750482,142.29,142.27,5.6251]
[1740871423702,0.04750482,142.29,142.26,5.6720531]
[1740871425393,5.67190482,142.29,142.26,5.6720531]
[1740871425804,5.67190482,142.29,142.26,0.0465531]
[1740871426108,0.04750482,142.29,142.26,0.0465531]
[1740871426403,5.625,142.28,142.26,0.0465531]
[1740871426605,0.04750482,142.29,142.26,0.0465531]
[1740871426802,5.6252,142.27,142.26,0.0465531]
[1740871427399,3.8045,142.28,142.26,0.0465531]
[1740871427605,9.4296,142.28,142.26,0.0465531]
[1740871428203,5.6252,142.27,142.26,0.0465531]
[1740871434914,18.67089626,142.27,142.18,61.25353274]
[1740871435119,185.7099,142.26,142.18,38.89423648]
[1740871435316,185.7099,142.26,142.18,57.56513274]
[1740871435712,185.7099,142.26,142.21,11.96239043]
[1740871436013,0.05155833,142.25,142.22,0.05218251]
[1740871436622,0.05155833,142.25,142.23,11.96239043]
[1740871437923,0.05155833,142.25,142.22,0.05218251]
[1740871438316,5.6268,142.23,142.22,0.05218251]
[1740871439425,5.6266,142.24,142.22,0.05218251]
[1740871439725,0.05155833,142.25,142.22,0.05218251]
[1740871440222,5.6264,142.24,142.22,0.05218251]
[1740871442628,5.67765833,142.25,142.22,0.05218251]
[1740871442818,0.05155833,142.25,142.22,0.05218251]
[1740871443319,5.67755833,142.25,142.22,0.05218251]
[1740871443930,0.05155833,142.25,142.22,0.05218251]
[1740871444521,5.6268,142.23,142.22,0.05218251]
[1740871444728,15.86004876,142.25,142.19,11.96239043]
[1740871444919,3.779,142.24,142.19,11.96239043]
[1740871445115,11.96239043,142.21,142.17,9.69915407]
[1740871445927,0.05409496,142.2,142.18,0.04808359]
[1740871447630,0.05409496,142.2,142.18,5.67678359]
[1740871447828,0.05409496,142.2,142.18,0.04808359]
[1740871448030,5.68229496,142.2,142.18,0.04808359]
[1740871448823,5.6284,142.19,142.18,0.04808359]
[1740871453632,230.7084,142.19,142.18,0.04808359]
[1740871466443,5.6297,142.16,142.13,5.6306]
[1740871467148,5.6297,142.16,142.11,10.66]
[1740871467338,5.6297,142.16,142.12,5.631]
[1740871467539,0.0523685,142.15,142.12,5.68253935]
[1740871468444,0.0523685,142.15,142.12,0.05153935]
[1740871468945,204.40878014,142.14,142.12,0.05153935]
[1740871469145,5.6307,142.13,142.12,0.05153935]
[1740871469740,17.6167412,142.13,142.12,0.05153935]
[1740871474351,5.6324,142.09,142.06,5.6334]
[1740871474551,5.6324,142.09,142.05,11.9860412]
[1740871475052,11.9860412,142.13,142.07,11.9860412]
[1740871475347,11.9860412,142.13,142.08,5.6325]
[1740871475553,0.04625715,142.11,142.08,5.6325]
[1740871478949,0.04625715,142.11,142.09,5.6323]
[1740871479148,0.04625715,142.11,142.09,11.9860412]
[1740871479346,5.6294,142.17,142.09,11.9860412]
[1740871479540,5.6294,142.17,142.12,11.9860412]
[1740871480246,5.6294,142.17,142.12,17.6170412]
[1740871480554,0.05147997,142.16,142.13,0.05009466]
[1740871480952,5.68137997,142.16,142.13,0.05009466]
[1740871481656,5.6301,142.15,142.13,0.05009466]
[1740871484055,17.6163412,142.14,142.13,0.05009466]
[1740871484951,11.9860412,142.14,142.07,49.55423648]
[1740871485255,5.6319,142.11,142.07,55.18723648]
[1740871485755,5.632,142.1,142.07,55.18723648]
[1740871486254,5.68194656,142.1,142.07,55.18723648]
[1740871487054,5.68194656,142.1,142.07,49.55423648]
[1740871487451,5.68194656,142.1,142.07,10.66]
[1740871488759,0.04994656,142.1,142.07,10.66]
[1740871489247,5.6327,142.08,142.07,10.66]
[1740871489448,12.03598776,142.1,142.04,10.66]
[1740871489649,12.03598776,142.1,142.04,22.6460412]
[1740871489848,5.6331,142.07,142.04,22.6460412]
[1740871490254,5.68535092,142.07,142.04,11.9860412]
[1740871490558,5.68535092,142.07,142.03,9.69915407]
[1740871490559,5.6338,142.06,142.03,9.69915407]
[1740871493360,5.6338,142.06,142.02,10.66]
[1740871494661,0.05225092,142.07,142.02,10.66]
[1740871494860,0.05225092,142.07,142.02,16.2948]
[1740871495754,5.68565092,142.07,142.03,5.6346]
[1740871495953,0.05225092,142.07,142.03,5.6346]
[1740871496153,0.05225092,142.07,142.03,18.73797732]
[1740871496361,0.05225092,142.07,142.04,5.634]
[1740871496561,0.05225092,142.07,142.03,18.73797732]
[1740871497463,0.05225092,142.07,142.04,5.6339]
[1740871497760,0.05225092,142.07,142.03,18.73797732]
[1740871498662,410.9899,142.16,142.05,18.73797732]
[1740871498861,410.9899,142.16,142.07,18.73797732]
[1740871498862,225.28,142.16,142.07,18.73797732]
[1740871499067,5.6306,142.14,142.08,16.2925]
[1740871499757,0.05212407,142.12,142.1,0.049675]
[1740871500465,0.05212407,142.12,142.1,5.681475]
[1740871501170,0.05212407,142.12,142.1,0.049675]
[1740871502468,0.05212407,142.12,142.11,5.6315]
[1740871503156,0.05212407,142.12,142.1,0.049675]
[1740871504768,0.05212407,142.12,142.1,5.681475]
[1740871505462,0.05212407,142.12,142.11,5.6315]
[1740871507862,225.28,142.16,142.11,5.6315]
[1740871508668,225.28,142.16,142.1,0.049675]
[1740871509163,0.04467302,142.14,142.1,0.049675]
[1740871509365,5.67507302,142.14,142.1,0.049675]
[1740871509957,0.04467302,142.14,142.1,0.049675]
[1740871511171,5.67507302,142.14,142.1,0.049675]
[1740871511669,5.67507302,142.14,142.11,11.97850233]
[1740871511971,0.04467302,142.14,142.11,11.97850233]
[1740871515575,0.04467302,142.14,142.11,17.61000233]
[1740871516073,0.04467302,142.14,142.12,5.6311]
[1740871518280,0.04467302,142.14,142.11,11.97850233]
[1740871518785,0.04467302,142.14,142.12,5.6309]
[1740871519275,0.04467302,142.14,142.11,11.97850233]
[1740871519473,0.04467302,142.14,142.11,17.60990233]
[1740871528581,0.04467302,142.14,142.11,11.97850233]
[1740871528786,0.04467302,142.14,142.12,5.6308]
[1740871529488,0.04467302,142.14,142.13,11.97850233]
[1740871529683,0.04467302,142.14,142.13,17.60920233]
[1740871530686,0.04467302,142.14,142.13,28.26920233]
[1740871531886,0.04467302,142.14,142.13,22.63850233]
[1740871535398,0.04467302,142.14,142.13,29.28586933]
[1740871537901,0.04467302,142.14,142.13,38.9850234]
[1740871539095,0.04467302,142.14,142.13,16.34652107]
[1740871539594,5.67497302,142.14,142.13,16.34652107]
[1740871539786,5.67497302,142.14,142.13,10.31822107]
[1740871540998,5.67497302,142.14,142.1,0.049675]
[1740871540999,5.6313,142.12,142.1,0.049675]
[1740871542300,0.04467302,142.14,142.1,0.049675]
[1740871542500,5.6309,142.13,142.1,0.049675]
[1740871543400,0.04467302,142.14,142.1,0.049675]
[1740871543603,5.67517302,142.14,142.1,0.049675]
[1740871544403,5.6308,142.13,142.1,0.049675]
[1740871545406,0.04467302,142.14,142.1,0.049675]
[1740871545703,5.67517302,142.14,142.1,0.049675]
[1740871545903,0.04467302,142.14,142.1,0.049675]
[1740871546605,0.04467302,142.14,142.11,11.97850233]
[1740871549099,0.04467302,142.14,142.13,11.97850233]
[1740871550904,0.04467302,142.14,142.13,17.60920233]
[1740871551103,0.04467302,142.14,142.13,11.97850233]
[1740871553400,0.04467302,142.14,142.13,17.60920233]
[1740871557703,0.04467302,142.14,142.12,9.69915407]
[1740871557914,0.04467302,142.14,142.12,21.6776564]
[1740871559705,0.04467302,142.14,142.12,27.3087564]
[1740871559907,0.04467302,142.14,142.12,17.60960233]
[1740871560612,0.04467302,142.14,142.12,5.6311]
[1740871560823,0.04467302,142.14,142.12,17.60960233]
[1740871561719,0.04467302,142.14,142.11,5.6313]
[1740871562020,0.04467302,142.14,142.11,17.60980233]
[1740871568835,0.04467302,142.14,142.11,11.97850233]
[1740871570631,0.04467302,142.14,142.11,17.61000233]
[1740871572436,0.04467302,142.14,142.11,11.97850233]
[1740871577440,0.04467302,142.14,142.11,17.60980233]
[1740871578142,0.04467302,142.14,142.12,5.6311]
[1740871581046,0.04467302,142.14,142.11,11.97850233]
[1740871581245,0.04467302,142.14,142.13,5.6307]
[1740871581946,0.04467302,142.14,142.12,5.6309]
[1740871583142,0.04467302,142.14,142.11,11.97850233]
[1740871583344,0.04467302,142.14,142.11,17.60970233]
[1740871584240,5.6309,142.13,142.1,38.94391148]
[1740871584642,0.04467302,142.14,142.1,38.94391148]
[1740871585040,11.97850233,142.13,142.1,38.94391148]
[1740871585642,5.6315,142.11,142.1,38.94391148]
[1740871586042,17.61000233,142.11,142.1,38.94391148]
[1740871586551,17.61000233,142.11,142.1,26.88611148]
[1740871586852,5.6319,142.1,142.09,98.52241172]
[1740871587545,5.6319,142.1,142.09,92.49321172]
[1740871587851,12.0319393,142.11,142.08,0.04744089]
[1740871588050,17.61080233,142.09,142.08,0.04744089]
[1740871589747,5.6323,142.09,142.08,0.04744089]
[1740871589942,12.0319393,142.11,142.08,0.04744089]
[1740871590145,0.05343697,142.11,142.08,0.04744089]
[1740871590342,0.05343697,142.11,142.08,12.02594322]
[1740871590749,5.68503697,142.11,142.08,12.02594322]
[1740871591849,0.05343697,142.11,142.08,12.02594322]
[1740871592055,0.05343697,142.11,142.1,11.97850233]
[1740871592256,11.97850233,142.17,142.1,11.97850233]
[1740871592460,11.97850233,142.17,142.12,11.97850233]
[1740871593453,5.6306,142.14,142.13,0.04751263]
[1740871594461,5.6301,142.15,142.13,0.04751263]
[1740871595055,5.6303,142.14,142.13,0.04751263]
[1740871595254,0.05303727,142.16,142.13,0.04751263]
[1740871595661,5.6302,142.15,142.13,0.04751263]
[1740871595960,0.05303727,142.16,142.13,0.04751263]
[1740871596557,5.68273727,142.16,142.13,0.04751263]
[1740871597357,5.6301,142.15,142.13,0.04751263]
[1740871597551,0.05303727,142.16,142.13,0.04751263]
[1740871598660,5.6303,142.15,142.13,0.04751263]
[1740871601061,5.6303,142.14,142.13,0.04751263]
[1740871622986,17.60860233,142.15,142.13,0.04751263]
[1740871623189,11.97850233,142.15,142.13,0.04751263]
[1740871624678,0.05303727,142.16,142.13,0.04751263]
[1740871625474,5.6303,142.15,142.13,0.04751263]
[1740871626988,5.68273727,142.16,142.13,0.04751263]
[1740871630487,0.05303727,142.16,142.13,5.67801263]
[1740871630783,0.05303727,142.16,142.13,0.04751263]
[1740871631285,5.68283727,142.16,142.13,0.04751263]
[1740871631992,5.63,142.15,142.13,0.04751263]
[1740871634896,5.6303,142.14,142.13,0.04751263]
[1740871635297,17.60860233,142.15,142.13,0.04751263]
[1740871635488,12.0315396,142.16,142.13,0.04751263]
[1740871635890,17.6614396,142.16,142.13,0.04751263]
[1740871636692,5.63,142.15,142.13,0.04751263]
[1740871637805,12.0315396,142.16,142.13,0.04751263]
[1740871638006,5.6303,142.14,142.13,0.04751263]
[1740871638202,17.60880233,142.14,142.13,0.04751263]
[1740871643919,11.97850233,142.14,142.13,0.04751263]
[1740871645523,17.60880233,142.14,142.13,0.04751263]
[1740871646617,12.0315396,142.16,142.13,0.04751263]
[1740871646822,0.05303727,142.16,142.13,0.04751263]
[1740871647018,0.05303727,142.16,142.14,11.97850233]
[1740871647224,0.05303727,142.16,142.15,5.6299]
[1740871647519,225.18,142.19,142.14,11.97850233]
[1740871647710,225.18,142.19,142.17,17.60740233]
[1740871647915,225.18,142.19,142.17,28.22740233]
[1740871648523,225.2289818,142.19,142.17,28.28066896]
[1740871648824,225.2289818,142.19,142.18,5.6288]
[1740871649219,0.65656936,142.23,142.17,22.65176896]
[1740871650414,0.04725667,142.21,142.17,10.67326663]
[1740871650618,11.97850233,142.31,142.21,11.97850233]
[1740871650821,128.9094615,142.33,142.27,5.6251]
[1740871651025,116.93095917,142.33,142.28,11.97850233]
[1740871651730,116.93095917,142.33,142.27,10.62]
[1740871651731,0.05310247,142.32,142.3,11.97850233]
[1740871652116,116.93095917,142.33,142.3,11.97850233]
[1740871652318,116.93095917,142.33,142.32,11.97850233]
[1740871652521,116.93095917,142.33,142.32,22.59850233]
[1740871653029,193.37964766,142.34,142.32,26.11850233]
[1740871653226,90.28390523,142.34,142.33,5.6228]
[1740871653529,0.04684544,142.34,142.33,5.6228]
[1740871653732,0.04684544,142.34,142.33,9.1428]
[1740871655531,0.04684544,142.34,142.33,3.52]
[1740871655725,0.04684544,142.34,142.33,18.65320805]
[1740871655924,0.04684544,142.34,142.32,10.66796855]
[1740871656323,0.04684544,142.34,142.33,125.02455121]
[1740871656524,225.16,142.42,142.33,125.02455121]
[1740871657227,225.16,142.42,142.33,143.67775926]
[1740871657726,0.05173433,142.39,142.36,0.05266043]
[1740871659333,230.7793,142.42,142.36,0.05266043]
[1740871660528,0.0500357,142.4,142.36,0.05266043]
[1740871661536,215.1423571,142.42,142.36,0.05266043]
[1740871661833,5.6198,142.41,142.36,0.05266043]
[1740871662738,0.04814536,142.4,142.36,0.05266043]
[1740871663342,18.65320805,142.39,142.32,20.19878515]
[1740871663639,3.8841,142.38,142.32,20.19878515]
[1740871663837,5.6214,142.37,142.32,20.19878515]
[1740871664441,5.6214,142.37,142.32,10.62]
[1740871664643,0.05330742,142.36,142.33,0.04621818]
[1740871666345,5.67500742,142.36,142.33,0.04621818]
[1740871668739,0.05330742,142.36,142.33,0.04621818]
[1740871670649,0.05330742,142.36,142.34,7.36744683]
[1740871670837,18.65320805,142.41,142.34,7.36744683]
[1740871671449,5.6216,142.37,142.34,7.36744683]
[1740871671646,5.6216,142.37,142.32,10.6]
[1740871672145,5.6216,142.37,142.33,0.04812104]
[1740871672146,0.04861163,142.36,142.33,0.04812104]
[1740871673050,0.04861163,142.36,142.33,5.67072104]
[1740871673349,0.04861163,142.36,142.33,0.04812104]
[1740871673552,0.04861163,142.36,142.34,24.27560805]
[1740871674947,0.04861163,142.36,142.34,18.65320805]
[1740871675148,0.04861163,142.36,142.33,0.04812104]
[1740871675547,5.6221,142.35,142.33,0.04812104]
[1740871675947,0.04861163,142.36,142.33,0.04812104]
[1740871676149,5.67041163,142.36,142.33,0.04812104]
[1740871676848,0.04861163,142.36,142.33,0.04812104]
[1740871677546,0.04861163,142.36,142.34,5.6222]
[1740871677751,0.04861163,142.36,142.35,11.93678816]
[1740871679748,0.04861163,142.36,142.35,5.622]
[1740871679955,18.64920054,142.46,142.34,18.64920054]
[1740871680160,5.6191,142.43,142.36,18.64920054]
[1740871680348,5.6191,142.43,142.37,10.6]
[1740871680551,18.64920054,142.46,142.37,10.6]
[1740871680851,215.1425571,142.42,142.37,10.6]
[1740871681051,0.0467117,142.41,142.38,0.04523697]
[1740871682254,1.17e-05,142.41,142.39,18.64920054]
[1740871682458,18.64920054,142.54,142.39,18.64920054]
[1740871682655,18.64920054,142.54,142.43,18.64920054]
[1740871682859,24.26400054,142.54,142.44,16.2182]
[1740871683055,18.64920054,142.48,142.4,10.6]
[1740871683252,11.2889,142.47,142.4,10.6]
[1740871683558,0.04560803,142.45,142.42,0.04458896]
[1740871684858,0.04560803,142.45,142.42,5.66378896]
[1740871685358,0.04560803,142.45,142.42,0.04458896]
[1740871687758,0.04560803,142.45,142.44,38.31514061]
[1740871689560,0.04560803,142.45,142.44,141.4882837]
[1740871691557,8.03e-06,142.45,142.44,165.75598424]
[1740871691764,11.5977,142.54,142.44,160.13748424]
[1740871692063,11.5977,142.54,142.45,10.58]
[1740871692849,0.05376844,142.51,142.48,0.04608861]
[1740871693552,5.66946844,142.51,142.48,0.04608861]
[1740871693754,0.05376844,142.51,142.48,0.04608861]
[1740871696767,5.6161,142.5,142.48,0.04608861]
[1740871696968,0.05376844,142.51,142.48,0.04608861]
[1740871697666,5.6165,142.5,142.48,0.04608861]
[1740871698061,0.05376844,142.51,142.48,0.04608861]
[1740871698464,5.6165,142.49,142.48,0.04608861]
[1740871698971,0.05376844,142.51,142.48,0.04608861]
[1740871699361,5.6164,142.5,142.48,0.04608861]
[1740871699561,0.05376844,142.51,142.48,0.04608861]
[1740871700482,5.66976844,142.51,142.48,0.04608861]
[1740871700678,0.05376844,142.51,142.48,0.04608861]
[1740871701058,0.05376844,142.51,142.48,5.66268861]
[1740871701260,0.05376844,142.51,142.48,0.04608861]
[1740871701460,18.64920054,142.63,142.5,18.64920054]
[1740871701660,18.64920054,142.63,142.52,18.64920054]
[1740871702263,5.6128,142.59,142.53,5.6147]
[1740871702471,5.6128,142.59,142.52,18.64920054]
[1740871702668,0.0416758,142.57,142.55,0.04529732]
[1740871703573,0.0416758,142.57,142.56,10.58]
[1740871704467,0.0416758,142.57,142.55,0.04529732]
[1740871705071,18.64920054,142.68,142.56,18.64920054]
[1740871705273,18.64920054,142.68,142.53,10.58]
[1740871705274,5.6105,142.65,142.58,18.64920054]
[1740871705474,5.6105,142.65,142.59,10.58]
[1740871705773,13.17,142.66,142.59,16.1924]
[1740871705964,13.17,142.66,142.59,10.58]
[1740871706171,13.17,142.66,142.61,0.04608522]
[1740871706474,7.5601,142.66,142.61,0.04608522]
[1740871706872,224.62,142.79,142.63,5.611]
[1740871707077,5.6087,142.69,142.64,10.58]
[1740871707278,7.4914,142.72,142.69,0.05267768]
[1740871707575,7.4914,142.72,142.64,10.58]
[1740871707771,5.6086,142.7,142.69,0.05079201]
[1740871708075,29.72370609,142.71,142.58,29.72370609]
[1740871708262,5.6106,142.64,142.59,10.58]
[1740871708465,40.30370609,142.68,142.63,0.04796827]
[1740871708666,40.30370609,142.68,142.59,10.58]
[1740871708867,5.6105,142.65,142.64,0.05178106]
[1740871709062,40.30370609,142.68,142.59,10.58]
[1740871709486,5.6106,142.65,142.59,10.58]
[1740871709777,40.30370609,142.68,142.59,10.58]
[1740871710280,0.04754611,142.65,142.62,0.0536742]
[1740871710473,0.04754611,142.65,142.56,10.58]
[1740871710676,5.6115,142.62,142.56,10.58]
[1740871710877,3.9828,142.64,142.56,10.58]
[1740871711379,5.6115,142.62,142.57,5.6132]
[1740871711571,0.05157795,142.61,142.59,0.04470484]
[1740871711777,5.66377795,142.61,142.59,0.04470484]
[1740871711971,0.05157795,142.61,142.59,0.04470484]
[1740871712583,5.6122,142.6,142.59,0.04470484]
[1740871714681,5.6143,142.55,142.52,40.30370609]
[1740871715084,224.5,142.6,142.48,29.72370609]
[1740871715282,224.5,142.6,142.5,10.58]
[1740871715774,3.6333,142.59,142.5,10.58]
[1740871716092,0.04668811,142.56,142.54,0.05117373]
[1740871716386,5.6141,142.55,142.54,0.05117373]
[1740871720283,0.04668811,142.56,142.54,0.05117373]
[1740871721384,5.6141,142.55,142.54,0.05117373]
[1740871723882,5.6151,142.53,142.48,45.92040609]
[1740871724686,5.6154,142.52,142.48,40.30370609]
[1740871724887,3.7115,142.57,142.48,10.58]
[1740871725088,0.05097867,142.51,142.49,0.05151669]
[1740871725283,5.6156,142.52,142.49,0.05151669]
[1740871725494,0.04938748,142.51,142.49,0.05151669]
[1740871732192,5.66518748,142.51,142.49,0.05151669]
[1740871732498,0.04938748,142.51,142.49,0.05151669]
[1740871732799,5.6161,142.5,142.49,0.05151669]
[1740871754609,5.6179,142.46,142.43,16.1987]
[1740871755004,3.9585,142.51,142.44,5.6185]
[1740871755403,5.6174,142.47,142.44,5.6185]
[1740871755605,3.9585,142.51,142.44,5.6184]
[1740871755810,0.04808129,142.47,142.44,5.66758693]
[1740871756014,0.04808129,142.47,142.44,0.04918693]
[1740871756710,5.66558129,142.47,142.44,0.04918693]
[1740871757512,5.66558129,142.47,142.44,5.66748693]
[1740871757711,5.66558129,142.47,142.44,0.04918693]
[1740871760711,5.6177,142.46,142.44,0.04918693]
[1740871761516,5.66558129,142.47,142.44,0.04918693]
[1740871761713,5.66558129,142.47,142.44,11.97329402]
[1740871766217,0.04808129,142.47,142.44,17.59179402]
[1740871773021,5.66538129,142.47,142.44,17.59179402]
[1740871775919,0.04808129,142.47,142.44,17.59179402]
[1740871779825,0.04808129,142.47,142.44,11.97329402]
[1740871780723,0.04808129,142.47,142.44,17.59169402]
[1740871786731,0.04808129,142.47,142.45,5.6181]
[1740871789526,0.04808129,142.47,142.44,11.97329402]
[1740871789731,5.66538129,142.47,142.44,17.59159402]
[1740871789935,5.66538129,142.47,142.44,11.97329402]
[1740871791035,5.66538129,142.47,142.44,17.59179402]
[1740871793138,0.04808129,142.47,142.44,17.59179402]
[1740871793339,0.04808129,142.47,142.44,11.97329402]
[1740871793539,0.04808129,142.47,142.45,5.6181]
[1740871793944,0.04808129,142.47,142.44,11.97329402]
[1740871794442,0.04808129,142.47,142.44,17.59149402]
[1740871794636,5.66548129,142.47,142.44,17.59149402]
[1740871795942,5.66548129,142.47,142.44,11.97329402]
[1740871797345,0.04808129,142.47,142.44,11.97329402]
[1740871797640,5.6177,142.46,142.44,11.97329402]
[1740871797942,0.04808129,142.47,142.44,11.97329402]
[1740871798145,5.66548129,142.47,142.44,11.97329402]
[1740871798848,5.66548129,142.47,142.44,17.59169402]
[1740871800447,5.66548129,142.47,142.44,11.97329402]
[1740871800752,5.6177,142.46,142.44,11.97329402]
[1740871801751,5.66558129,142.47,142.44,11.97329402]
[1740871803451,0.04808129,142.47,142.44,11.97329402]
[1740871803953,0.04808129,142.47,142.44,17.59179402]
[1740871804149,0.04808129,142.47,142.46,11.92410709]
[1740871804547,0.04808129,142.47,142.46,17.54180709]
[1740871805752,224.68,142.52,142.46,11.92410709]
[1740871806054,224.68,142.52,142.49,11.92410709]
[1740871806257,15.85310709,142.56,142.53,5.6146]
[1740871806553,11.92410709,142.56,142.51,11.92410709]
[1740871806756,11.92410709,142.56,142.52,10.58]
[1740871806956,0.0498468,142.55,142.53,5.6146]
[1740871807157,0.0498468,142.55,142.52,10.6321713]
[1740871807763,0.0498468,142.55,142.53,5.6148]
[1740871811250,0.0498468,142.55,142.52,16.2472713]
[1740871811964,0.0498468,142.55,142.53,5.6149]
[1740871812563,0.0498468,142.55,142.54,5.6145]
[1740871813862,224.7,142.59,142.53,11.92410709]
[1740871814064,224.7,142.59,142.56,11.92410709]
[1740871814260,224.7,142.59,142.54,11.92410709]
[1740871814765,224.7,142.59,142.55,5.6139]
[1740871814951,71.67891167,142.59,142.58,11.92410709]
[1740871817760,0.04652768,142.6,142.58,11.92410709]
[1740871819072,0.04652768,142.6,142.58,17.53680709]
[1740871819369,0.04652768,142.6,142.58,11.92410709]
[1740871820070,0.04652768,142.6,142.58,17.53690709]
[1740871821767,0.04652768,142.6,142.58,11.92410709]
[1740871821968,0.04652768,142.6,142.59,5.6126]
[1740871823974,0.04652768,142.6,142.58,17.58970895]
[1740871824172,0.04652768,142.6,142.58,11.97690895]
[1740871824468,0.04652768,142.6,142.58,17.58960895]